Cogmind - Beta 11.1 --- EXPLORER MODE // 2022.05.09 @ 21:52:32 Player: ava-01 Result: Destroyed by S-27 Virus with Autogun Performance ------------- Evolutions (5) 2500 Regions Visited (7) 1400 Robots Destroyed (130) 650 Value Destroyed (4557) 4557 Prototype IDs (7) 140 Alien Tech Used (0) 0 Bonus (200) 200 TOTAL SCORE: 9447 Bonus ------- High Alert Combat Kills 200 Cogmind --------- Core Integrity 0/1000 Matter 286/300 Energy 100/100 System Corruption 10% Temperature Cool (0) Movement Core (150) Ox2 Location -5/Factory Parts ------- > --- POWER (3) -------- (None) > --- PROPULSION (5) --- (None) > --- UTILITY (5) ------ (None) > --- WEAPON (5) ------- Precision Rocket Launcher > --- INVENTORY (5) ---- Faulty Precision Rocket Launcher Peak State ------------ > --- POWER ------------ Micro Fission Core > --- PROPULSION ------- Armored Leg Antigrav System > --- UTILITY ---------- Improved Sensor Array > --- WEAPON ----------- High-powered Shock Rifle High-powered Shock Rifle Tesla Rifle Coil Gun Long-range Missile Launcher > --- INVENTORY -------- (None) [Rating: 46] Favorites ----------- Power Light Nuclear Core Engine Light Ion Engine Power Core Light Nuclear Core Propulsion Light Treads Treads Light Treads Leg Armored Leg Wheel Wheel Hover Unit Antigrav System Flight Unit Improved Cesium-ion Thruster Utility Medium Storage Unit Device Improved Heat Sink Storage Medium Storage Unit Protection Hardened Heavy Armor Plating Weapon Missile Launcher Energy Gun High-powered Shock Rifle Energy Cannon Advanced Beam Cannon Ballistic Gun High-powered Shotgun Ballistic Cannon Mini Assault Cannon Launcher Missile Launcher Slashing Weapon Katana Build | -11 -10 -9 -9 -8 -7 -6 -5 ------- Run | Scr Mat Mat Min Mat Fac Fac Fac Slots Evolved 11 | . 1 2 . 2 2 2 2 Power 2 | . . . . . 2 . . Propulsion 3 | . . 1 . . . . 2 Utility 3 | . . 1 . 1 . 1 . Weapon 3 | . 1 . . 1 . 1 . Parts Attached 93 | 8 1 4 2 6 19 32 21 Power 16 | 1 . . . . 4 6 5 Engine 11 | 1 . . . . 2 6 2 Core 5 | . . . . . 2 . 3 Reactor . | . . . . . . . . Propulsion 21 | 2 . 1 . 1 2 11 4 Treads 11 | 2 . 1 . 1 1 6 . Leg 6 | . . . . . . 3 3 Wheel 2 | . . . . . . 2 . Hover 1 | . . . . . . . 1 Flight 1 | . . . . . 1 . . Utility 12 | 2 . 1 1 . 3 4 1 Device 5 | . . . . . 1 3 1 Storage 2 | 1 . 1 . . . . . Processor . | . . . . . . . . Hackware . | . . . . . . . . Protection 5 | 1 . . 1 . 2 1 . Artifact . | . . . . . . . . Weapon 44 | 3 1 2 1 5 10 11 11 Energy Gun 18 | 2 1 . . 1 2 5 7 Energy Cannon 1 | . . 1 . . . . . Ballistic Gun 6 | 1 . . . . 2 2 1 Ballistic Cannon 2 | . . . . 1 1 . . Launcher 12 | . . 1 . 3 3 2 3 Special Weapon . | . . . . . . . . Impact Weapon . | . . . . . . . . Slashing Weapon 5 | . . . 1 . 2 2 . Piercing Weapon . | . . . . . . . . Special Melee Weapon . | . . . . . . . . Unidentified Prototypes 7 | . . 1 . . 5 . 1 Corrupted Parts 6 | . . . . . . 4 2 System Corruption 11 | . . . . . . 7 4 Parts Lost 60 | . . . 1 . 5 30 24 Power 14 | . . . . . 2 6 6 Propulsion 14 | . . . . . 2 7 5 Utility 7 | . . . . . . 4 3 Weapon 25 | . . . 1 . 1 13 10 Highest Loss Streak 11 | . . . 1 . 2 11 10 To Critical Strikes . | . . . . . . . . Average Slot Usage (%) 69 | . 100 98 96 89 81 53 35 Engine 4 | . 12 10 10 8 2 3 2 Core 6 | . . . . . 13 3 3 Treads 13 | . 25 28 30 25 14 8 . Leg 1 | . . . . . . 2 6 Device 2 | . . . . . 2 2 3 Storage 11 | . 12 20 20 16 14 8 1 Protection 4 | . 12 10 10 8 5 3 . Energy Gun 6 | . 25 14 6 5 3 3 7 Ballistic Gun 4 | . 12 3 . . 6 4 3 Ballistic Cannon 3 | . . . . 7 5 4 . Launcher 6 | . . 6 1 8 9 5 1 Slashing Weapon 2 | . . . 8 6 3 1 . Naked Turns . | . . . . . . . . Heaviest Build 70 | 17 19 28 28 39 68 70 44 Greatest Support 70 | 40 40 63 63 65 70 60 44 Greatest Overweight (x) 9 | . . . . . 2 9 6 Average Overweight (x) . | . . . . . . 1 1 Largest Inventory Capacity 10 | 10 10 10 10 10 10 10 10 Average Capacity 9 | 6 10 10 10 10 10 10 6 Most Carried 10 | 5 8 9 8 10 10 7 5 Average Carried 5 | 2 5 7 7 7 7 2 . Final Capacity 10 | 10 10 10 10 10 10 10 5 Final Carried 9 | 5 8 7 7 9 8 . 1 Class Distribution -------------------- 50% | Hacker-Mutant 19% | Hacker-Tank 12% | Hacker-Bomber 5% | Hacker-Skirmisher 4% | Hacker-Gunner 4% | Scavenger-Skirmisher Dominant Class ---------------- Hacker-Tank | -10/Materials Hacker-Mutant | -9/Materials Hacker-Mutant | -9/Mines Hacker-Mutant | -8/Materials Hacker-Mutant | -7/Factory Hacker-Mutant | -6/Factory Hacker-Mutant | -5/Factory Resources | -11 -10 -9 -9 -8 -7 -6 -5 ----------- Run | Scr Mat Mat Min Mat Fac Fac Fac Matter Collected 2920 | . 228 235 137 216 782 812 510 Remotely . | . . . . . . . . Salvage Created 4348 | . 115 328 161 466 1400 953 925 Parts 258 | . 11 24 5 35 92 46 45 Haulers Intercepted . | . . . . . . . . Recyclers Shooed . | . . . . . . . . Parts Field Recycled . | . . . . . . . . Retrieved Matter . | . . . . . . . . Parts Self-Destructed . | . . . . . . . . Prevented . | . . . . . . . . Kills | -11 -10 -9 -9 -8 -7 -6 -5 ------- Run | Scr Mat Mat Min Mat Fac Fac Fac Combat Hostiles Destroyed 95 | . 2 4 11 14 36 15 13 Guns 43 | . 2 2 1 1 21 7 9 Cannons 37 | . . 2 10 11 8 6 . AOE 14 | . . . . 2 7 2 3 Classes Destroyed 16 | . 4 2 2 2 5 1 . Worker 10 | . . . . 1 6 3 . Builder 12 | . 1 . . . 3 4 4 Recycler 4 | . . . . . 1 2 1 Mechanic 1 | . . . . . 1 . . Operator 3 | . . 1 . . 2 . . Watcher 13 | . 2 3 . 2 5 . 1 Swarmer 18 | . 1 . 2 5 8 2 . Grunt 26 | . 1 . . 3 12 5 5 Brawler 2 | . . . . 1 . . 1 Duelist 3 | . . . . . 2 . 1 Sentry 17 | . . 4 . 5 4 4 . Demolisher 1 | . . . 1 . . . . Hunter 6 | . . . . . 4 2 . Programmer 13 | . . . . . 6 1 6 Behemoth 1 | . . . . . . 1 . Assembled 8 | . . . 8 . . . . Best Kill Streak 8 | . 3 2 8 4 6 5 3 Combat Bots Only 8 | . 1 1 8 3 4 3 2 Max Kills in Single Turn 4 | . 1 1 1 3 4 2 3 Gunslinging . | . . . . . . . . Exploded 2 | . . . . 1 1 2 2 Melee . | . . . . . . . . Uniques/NPCs Destroyed . | . . . . . . . . Combat | -11 -10 -9 -9 -8 -7 -6 -5 -------- Run | Scr Mat Mat Min Mat Fac Fac Fac Damage Taken 8630 | . 33 73 393 163 1319 3675 2974 Core 1867 | . 6 17 43 26 85 689 1001 Absorbed by Shields . | . . . . . . . . Redirected to Shielding 40 | . 3 14 23 . . . . Core Remaining (%) 80 | 100 97 . 85 95 87 18 . Volleys Fired 264 | . 5 13 23 22 75 69 57 Largest 5 | . 3 3 3 4 4 5 4 Hottest 215 | . 110 141 141 176 207 190 215 Shots Fired 542 | . 15 34 31 44 160 133 125 Gun 331 | . 15 26 7 7 89 67 120 Cannon 143 | . . 5 23 29 31 55 . Launcher 68 | . . 3 1 8 40 11 5 Special . | . . . . . . . . Kinetic 226 | . 5 6 . 17 66 83 49 Thermal 163 | . 5 12 23 19 53 23 28 Explosive 62 | . . 3 1 8 38 7 5 Electromagnetic 91 | . 5 13 7 . 3 20 43 Robot Hit Streak 37 | . 3 12 9 12 36 37 33 Robot Miss Streak 3 | . 1 1 2 3 3 2 2 Penetration Max 1 | . . . . . . . 1 Secondary Targets 7 | . 1 . . . 3 . 3 Max Gunslinging Chain 1 | . 1 . . . 1 . 1 Shots Hit Robots 430 | . 7 25 24 35 122 107 110 Core Hits 323 | . 6 13 14 40 141 62 47 Critical Kills . | . . . . . . . . Critical Parts Destroyed 4 | . . . . . 1 . 3 Critical Strikes 19 | . 1 1 1 1 3 3 9 Burn 8 | . 1 1 . 1 2 . 3 Destroy 4 | . . . . . 1 . 3 Blast 3 | . . . . . . 3 . Corrupt 4 | . . . 1 . . . 3 Melee Attacks 2 | . . . 1 . 1 . . Impact . | . . . . . . . . Slashing 2 | . . . 1 . 1 . . Piercing . | . . . . . . . . Sneak Attacks 1 | . . . . . 1 . . Combat Hostiles . | . . . . . . . . Follow-up Attacks . | . . . . . . . . Damage Inflicted 12038 | . 201 424 474 886 4208 2926 2919 Guns 5566 | . 124 251 65 87 1675 1396 1968 Cannons 2814 | . . 62 329 575 687 1161 . Explosions 3561 | . 77 111 38 224 1792 369 950 Melee 96 | . . . 42 . 54 . . Ramming 1 | . . . . . . . 1 Kinetic 4586 | . 10 35 . 373 1380 1701 1087 Thermal 3099 | . 115 152 329 289 978 608 628 Explosive 3115 | . . 71 38 224 1692 218 872 Electromagnetic 1141 | . 76 166 65 . 104 399 331 Impact . | . . . . . . . . Slashing 96 | . . . 42 . 54 . . Piercing . | . . . . . . . . Highest Corruption 10 | . . . . . 4 8 10 Average Corruption 4 | . . . . . 3 6 5 Corruption Purged . | . . . . . . . . Corruption Blocked . | . . . . . . . . Effects 80 | . . . . . 37 22 21 Message Errors 17 | . . . . . 9 4 4 Matter Fused 21 | . . . . . 9 6 6 Heat Flow Errors 8 | . . . . . 3 3 2 Energy Discharges 8 | . . . . . 6 2 . Parts Rejected 2 | . . . . . 1 1 . Data Loss (minor) 10 | . . . . . 4 1 5 Data Loss (major) 4 | . . . . . 2 . 2 Misfires 4 | . . . . . 2 2 . Alerts 1 | . . . . . 1 . . Misdirections 1 | . . . . . . . 1 Weapon Failures 4 | . . . . . . 3 1 Overload Shots . | . . . . . . . . Overflow Damage 169 | . . . 12 . 40 14 103 Projectiles 24 | . . . 10 . . 14 . Explosions 129 | . . . . . 26 . 103 Melee 16 | . . . 2 . 14 . . Knockbacks 13 | . . . . 2 2 9 . Impact . | . . . . . . . . Kinetic 12 | . . . . 2 2 8 . Secondary 1 | . . . . . . 1 . Self-Inflicted Damage 176 | . . . 26 . 90 23 37 Shots 10 | . . . 1 . 5 2 2 Rammed 1 | . . . . . . . 1 Targets Rammed 1 | . . . . . . . 1 Kicked . | . . . . . . . . Crushed . | . . . . . . . . Highest Temperature 361 | . 156 192 361 219 276 306 319 Average Temperature 83 | . 64 58 159 61 73 90 81 Received Heat Transfer 3644 | . 12 27 140 99 453 1800 1113 Effects 7 | . . . 5 . 1 . 1 Shutdowns 1 | . . . . . . . 1 Energy Bleed 3 | . . . 2 . 1 . . Interference 3 | . . . 3 . . . . Siege Activations . | . . . . . . . . Robots Corrupted 1 | . . . . . . . 1 Combat Hostiles 1 | . . . . . . . 1 Parts Fried . | . . . . . . . . Impact Corruptions . | . . . . . . . . Robots Melted . | . . . . . . . . Combat Hostiles . | . . . . . . . . Parts Melted 9 | . . 1 . 2 2 1 3 Heat Transferred 6099 | . 285 383 592 629 1337 1273 1600 Parts Sabotaged . | . . . . . . . . Parts Stolen . | . . . . . . . . Parts Stripped . | . . . . . . . . Power Chain Reactions 4 | . 1 1 . . . 1 1 Missiles Intercepted . | . . . . . . . . Alert | -11 -10 -9 -9 -8 -7 -6 -5 ------- Run | Scr Mat Mat Min Mat Fac Fac Fac Peak Influence 728 | . 105 246 115 308 728 193 198 Initial 101 | . . 31 30 31 101 21 14 Average 168 | . 65 130 53 186 301 75 42 Maximum Alert Level 3 | . . 1 . 1 3 . . Low Security (%) 67 | 100 100 75 100 51 32 100 100 Level 1 17 | . . 24 . 48 27 . . Level 2 14 | . . . . . 37 . . Level 3 . | . . . . . 2 . . Level 4 . | . . . . . . . . Level 5 . | . . . . . . . . High Security . | . . . . . . . . Max Security . | . . . . . . . . Squads Dispatched 30 | . . . . 1 13 7 9 Investigation 2 | . . . . . 2 . . Extermination 10 | . . . . . 5 1 4 Reinforcement 12 | . . . . 1 6 3 2 Assault . | . . . . . . . . Garrison 6 | . . . . . . 3 3 Intercept . | . . . . . . . . Searches Triggered . | . . . . . . . . Construction Impeded 6 | . . . . . 3 2 1 Haulers Reinforced 2 | . . . . . 1 1 . Active Scanning Responses . | . . . . . . . . Cargo Convoy Interrupts . | . . . . . . . . Stealth | -11 -10 -9 -9 -8 -7 -6 -5 --------- Run | Scr Mat Mat Min Mat Fac Fac Fac Distress Signals 5 | . 1 1 . . 2 1 . Communications Jammed . | . . . . . . . . Distress Signals . | . . . . . . . . Times Spotted 143 | . 5 8 11 19 52 21 27 Peak Tracking Total 6 | . 3 2 5 4 5 4 6 Tactical Retreats 15 | . . 1 . . 10 2 2 Traps | -11 -10 -9 -9 -8 -7 -6 -5 ------- Run | Scr Mat Mat Min Mat Fac Fac Fac Traps Triggered 14 | . . . . . 10 1 3 Indirectly 1 | . . . . . 1 . . Trap Hack Attempts . | . . . . . . . . Triggered . | . . . . . . . . Disarmed . | . . . . . . . . Reprogrammed . | . . . . . . . . Reused . | . . . . . . . . Traps Extracted . | . . . . . . . . Installed . | . . . . . . . . Triggered . | . . . . . . . . Machines | -11 -10 -9 -9 -8 -7 -6 -5 ---------- Run | Scr Mat Mat Min Mat Fac Fac Fac Machines Disabled 11 | . . . 1 1 8 . 1 Max in Single Turn 2 | . . . 1 1 2 . 1 Machines Sabotaged . | . . . . . . . . Garrisons Compromised . | . . . . . . . . Overloaded Fab Kills . | . . . . . . . . Hacking | -11 -10 -9 -9 -8 -7 -6 -5 --------- Run | Scr Mat Mat Min Mat Fac Fac Fac Machines Accessed . | . . . . . . . . Terminals . | . . . . . . . . Fabricators . | . . . . . . . . Repair Stations . | . . . . . . . . Recycling Units . | . . . . . . . . Scanalyzers . | . . . . . . . . Garrison Access . | . . . . . . . . Total Hacks . | . . . . . . . . Successful . | . . . . . . . . Failed . | . . . . . . . . Catastrophic . | . . . . . . . . Database Lockouts . | . . . . . . . . Manual . | . . . . . . . . Terminals . | . . . . . . . . Fabricators . | . . . . . . . . Repair Stations . | . . . . . . . . Recycling Units . | . . . . . . . . Scanalyzers . | . . . . . . . . Garrison Access . | . . . . . . . . Terminal Hacks . | . . . . . . . . Fabricator Hacks . | . . . . . . . . Repair Station Hacks . | . . . . . . . . Recycling Unit Hacks . | . . . . . . . . Scanalyzer . | . . . . . . . . Garrison Access Hacks . | . . . . . . . . Unauthorized Hacks . | . . . . . . . . Terminals . | . . . . . . . . Fabricators . | . . . . . . . . Repair Stations . | . . . . . . . . Recycling Units . | . . . . . . . . Scanalyzers . | . . . . . . . . Garrison Access . | . . . . . . . . Data Cores Recovered . | . . . . . . . . Used . | . . . . . . . . Hacking Detections . | . . . . . . . . Full Trace Events . | . . . . . . . . Feedback Events . | . . . . . . . . Feedback Blocked . | . . . . . . . . Robot Schematics Acquired . | . . . . . . . . Robots Built . | . . . . . . . . Authchips . | . . . . . . . . Time . | . . . . . . . . Total Robot Build Rating . | . . . . . . . . Part Schematics Acquired . | . . . . . . . . Parts Built . | . . . . . . . . Authchips . | . . . . . . . . Time . | . . . . . . . . Total Part Build Rating . | . . . . . . . . Parts Repaired . | . . . . . . . . Time . | . . . . . . . . Parts Recycled . | . . . . . . . . Recycled Matter . | . . . . . . . . Retrieved Matter . | . . . . . . . . Retrieved Components . | . . . . . . . . Parts Scanalyzed . | . . . . . . . . Part Schematics Acquired . | . . . . . . . . Parts Damaged . | . . . . . . . . Bothacking | -11 -10 -9 -9 -8 -7 -6 -5 ------------ Run | Scr Mat Mat Min Mat Fac Fac Fac Used RIF Installer . | . . . . . . . . Robots Hacked . | . . . . . . . . Non-combat . | . . . . . . . . Combat . | . . . . . . . . Robot Hacks Applied . | . . . . . . . . Relay Couplers Released 4 | . . . . . . . 4 Programmers 4 | . . . . . . . 4 Fabnet Peak Effective % . | . . . . . . . . Robots Rewired . | . . . . . . . . Allies Hacked . | . . . . . . . . Hacks Repelled . | . . . . . . . . Allies | -11 -10 -9 -9 -8 -7 -6 -5 -------- Run | Scr Mat Mat Min Mat Fac Fac Fac Total Allies . | . . . . . . . . Largest Group . | . . . . . . . . Highest-Rated Group . | . . . . . . . . Highest-Rated Ally . | . . . . . . . . Total Orders . | . . . . . . . . Ally Attacks . | . . . . . . . . Total Damage . | . . . . . . . . Kills . | . . . . . . . . Allies Corrupted . | . . . . . . . . Allies Melted . | . . . . . . . . Intel | -11 -10 -9 -9 -8 -7 -6 -5 ------- Run | Scr Mat Mat Min Mat Fac Fac Fac Robot Analysis Total . | . . . . . . . . Derelict Logs Recovered . | . . . . . . . . Drone Launches . | . . . . . . . . Drone Recoveries . | . . . . . . . . Exploration | -11 -10 -9 -9 -8 -7 -6 -5 ------------- Run | Scr Mat Mat Min Mat Fac Fac Fac Turns Passed 6748 | 92 195 480 214 659 2604 1025 1479 Spaces Moved 2977 | 49 110 267 97 366 1075 359 654 Core 87 | 5 . . . . . 28 54 Treads 2205 | 44 110 267 97 366 1075 246 . Legs 677 | . . . . . . 77 600 Wheels 8 | . . . . . . 8 . Hover . | . . . . . . . . Flight . | . . . . . . . . Fastest Speed 50 | 50 160 160 160 155 152 90 90 Average Speed 188 | 148 160 160 160 158 205 210 188 Slowest Speed 500 | 160 160 160 160 160 320 500 360 Overloaded Moves . | . . . . . . . . Propulsion Burnouts . | . . . . . . . . Robots Hopped . | . . . . . . . . Cave-ins Triggered . | . . . . . . . . Exploration Rate (%) 24 | 5 32 26 50 22 36 13 13 Regions Visited 7 Branch Regions 1 Pre-discovered Areas . | . . . . . . . . Known Exits Taken 7 | 1 1 1 1 1 1 1 . Unknown Exits Taken . | . . . . . . . . Scrap Searched . | . . . . . . . . Spaces Dug . | . . . . . . . . Terrain Destroyed 496 | . 5 36 7 114 238 43 53 Melee . | . . . . . . . . Projectile 7 | . . . . . 1 3 3 AOE 489 | . 5 36 7 114 237 40 50 Terrain Rammed . | . . . . . . . . Walls Destroyed . | . . . . . . . . Machines Disabled . | . . . . . . . . Actions | -11 -10 -9 -9 -8 -7 -6 -5 --------- Run | Scr Mat Mat Min Mat Fac Fac Fac Total 3646 | 68 119 297 125 409 1338 506 784 Wait 178 | . . 1 . . 130 18 29 Move 2970 | 48 109 266 96 365 1074 358 654 Hop . | . . . . . . . . Pick Up 99 | 11 4 6 1 9 20 26 22 Fast Attach 1 | 1 . . . . . . . Attach 91 | 7 1 4 2 5 19 32 21 Detach 10 | 1 . 2 1 2 4 . . Swap 1 | . . . . 1 . . . Drop 29 | . . 5 1 5 15 3 . Fire 264 | . 5 13 23 22 75 69 57 Melee 2 | . . . 1 . 1 . . Ram 1 | . . . . . . . 1 Kick . | . . . . . . . . Crush . | . . . . . . . . Escape Stasis . | . . . . . . . . Rewire . | . . . . . . . . Trap . | . . . . . . . . Miscellaneous . | . . . . . . . . Route ------- -11/Scrapyard -10/Materials (discovered 2 exits: *Mat / *Min) -9/Materials (discovered 2 exits: *Min / *Sto) -9/Mines -8/Materials -7/Factory (discovered 2 exits: *Fac / *Low) -6/Factory (discovered 2 exits: *Fac x2) -5/Factory (discovered 1 exit: *Ext) History --------- Turn | Location | Event 8 | -11/Scrapyard | Identified exit to Materials 8 | -11/Scrapyard | Discovered exit to Materials (range 15) 93 | -11/Scrapyard | Entered Materials 93 | -10/Materials | Evolved 1 slot: Weapon x1 158 | -10/Materials | Identified exit to Mines 158 | -10/Materials | Discovered exit to Mines (range 9) 272 | -10/Materials | Identified exit to Materials 272 | -10/Materials | Discovered exit to Materials (range 9) 288 | -10/Materials | Entered another Materials area 288 | -9/Materials | Evolved 2 slots: Propulsion x1, Utility x1 309 | -9/Materials | Build established: Hacker-Tank 701 | -9/Materials | Identified exit to Storage 701 | -9/Materials | Discovered exit to Storage (range 10) 745 | -9/Materials | Identified exit to Mines 745 | -9/Materials | Discovered exit to Mines (range 13) 768 | -9/Materials | Entered Mines 769 | -9/Mines | Assembled infested the area 868 | -9/Mines | Destroyed 8 combat bots 961 | -9/Mines | Identified exit to Materials 961 | -9/Mines | Discovered exit to Materials (range 8) 982 | -9/Mines | Entered Materials 982 | -8/Materials | Evolved 2 slots: Utility x1, Weapon x1 1125 | -8/Materials | Build established: Hacker-Mutant 1617 | -8/Materials | Identified exit to Factory 1617 | -8/Materials | Discovered exit to Factory (range 15) 1641 | -8/Materials | Entered Factory 1641 | -7/Factory | Evolved 2 slots: Power x2 2040 | -7/Factory | Identified exit to Lower Caves 2040 | -7/Factory | Discovered exit to Lower Caves (range 16) 2070 | -7/Factory | Found Prototype Launcher 2071 | -7/Factory | Identified Rocket Array 3012 | -7/Factory | Build established: Hacker-Tank 4169 | -7/Factory | Build established: Hacker-Bomber 4216 | -7/Factory | Identified exit to Factory 4216 | -7/Factory | Discovered exit to Factory (range 8) 4245 | -7/Factory | Entered another Factory area 4245 | -6/Factory | Evolved 2 slots: Utility x1, Weapon x1 4443 | -6/Factory | Identified exit to Factory 4443 | -6/Factory | Discovered exit to Factory (range 10) 4714 | -6/Factory | Lost 11 parts (2p3n2u4w) 4808 | -6/Factory | Garrison activated, responded to threat 4918 | -6/Factory | Spotted B-75 Beast 4950 | -6/Factory | Core integrity fell below 50% 4980 | -6/Factory | Lost 8 parts (2p2n1u3w) 5039 | -6/Factory | Build established: Hacker-Mutant 5046 | -6/Factory | Destroyed B-75 Beast 5250 | -6/Factory | Discovered exit to Factory (range 15) 5265 | -6/Factory | Core integrity fell below 20% 5270 | -6/Factory | Entered another Factory area 5270 | -5/Factory | Evolved 2 slots: Propulsion x2 5293 | -5/Factory | Lost 3 parts (1u2w) 5379 | -5/Factory | Identified exit to Extension 5379 | -5/Factory | Discovered exit to Extension (range 13) 5651 | -5/Factory | Lost 6 parts (1p2n2u1w) 6368 | -5/Factory | Build established: Hacker-Skirmisher 6533 | -5/Factory | Garrison activated, responded to threat 6537 | -5/Factory | System corruption reached 10% 6614 | -5/Factory | Lost 10 parts (1p1n1u7w) 6674 | -5/Factory | Core integrity fell below 50% 6715 | -5/Factory | Spotted B-75 Beast 6738 | -5/Factory | Core integrity fell below 20% 6749 | -5/Factory | Destroyed by S-27 Virus with Autogun Last Messages --------------- 06735_ U-05 Engineer lays Concrete. 06737_ Mic. Fission Core destroyed. 06737_ U-05 Engineer builds a Wall. 06738_ Critical hit (Burn: +37). 06738_ U-05 Engineer lays Concrete. 06739_ T-07 Excavator is excavating. 06739_ U-05 Engineer lays Concrete. 06740_ Acquired Faulty Prc. Rocket Launcher. 06740_ U-05 Engineer lays Concrete. 06742_ Acquired Prc. Rocket Launcher. 06743_ T-07 Excavator is excavating. 06744_ U-05 Engineer destroyed. 06744_ Destroyed Mining Laser. 06744_ U-05 Engineer destroyed. 06744_ Destroyed Terrain Scanner. 06744_ U-05 Engineer destroyed. 06744_ Destroyed Wheel. 06745_ Prc. Rocket Launcher destroyed. 06747_ S-27 Virus destroyed. 06748_ Acquired 28 matter. Map ----- +----------------------------------------------------+ | ?????????????????????????????????????????????????? | | ?????????????????????????????????????????????????? | | ?????????????????????????????????????????????????? | | ?????????????????????????????????????????????????? | | ?????????????????????????????????????????????????? | | ?????????????????????????????????????????????????? | | ?????????????????????????????????????????????????? | | ?????????????????????????????????????????????????? | | ?????????????????????????????????????????????????? | | ?????????????????????????????????????????????????? | | ?????????????????????????????????????????????????? | | ?????????????????????????????????????????????????? | | ?????????????????????????????????????????????????? | | ???????????????#?????????????? ??????????????? | | ?????????????### ????????????# ????????????? | | ????????????? ??????????## ??????????? | | ???????????? ???????? ## ??????????? | | ???????????? ???????? ## ??????????? | | ???????????? ??????? ## ""??????????? | | ????????????? #######;## """ ????????? | | ??????????????# """ ????????? | | ??????????????# ???? ?? | | ??????????????# /= """ """ ""? ? | | ??????????????# /= """ """ ""? ? | | ??????????????# s R""" """ ""? #? | | ??????????????# s @% % #? | | ??????????????# ] """ """ #? | | ??????????????####+### """ """ #? | | ?????????????????????# u g """ """ #? | | ???????????????????? !"" "" #? | | ??????????????????? |= "F "" """ """ # | | ?????????????????? !* """" """ """ + | | ????????????????? """ """ #? | | ???????????????? t BB t R #? | | ???????????????##### BB # #? | | ??????????????????? ####+######## ###? | | ??????????????????## ???????????# #??? | | ??????????????????? ???????????# #??? | | ???????????????????## ## ### ???????????# #??? | | ????????????????????##??#??? ???????????# #??? | | ????????????????????????????????????????# #??" | | ?????????????????????????????????????#### # " | | ?????????????????????????????????????# + " | | ?????????????????????????????????????# # " | | ????????????????????????????########?# #??" | | ????????????????????????????# # ### ##??? | | ????????????????????????????# """ # #?# #???? | | ????????????????????????????# """ + #?# #???? | | ????????????????????????????# """ # #?# #???? | | ????????????????????????????# # #?# #???? | +----------------------------------------------------+ Best States ------------- Heat Dissipation 54 Energy Generation 32 Energy Capacity 505 Matter Stores 500 Matter Capacity 500 Sight Range 16 Robot Scan Range 16 Terrain Scan Density 10 Power Amplification 20 Armor Coverage 600 Resistance: KI 65 Resistance: TH 35 Resistance: EX 35 Resistance: EM 35 Resistance: I 35 Resistance: S 35 Resistance: P 35 Propulsion Shielding 33 Evasion (%) 57 Recoil Reduction 3 Offensive Hacking 20 Item Schematics ----------------- None Robot Schematics ------------------ None Fabricated ------------ Nothing Alien Tech Used ----------------- None Achievements -------------- Maybe Next Time I'll Detach My Launcher Challenges ------------ None Game ------ Seed ReflectiveXenonHumpback Manual? 0 Play Time 00:53:13 Cumulative 7.7 hours Start 2022.05.09 @ 21:00:28 End 2022.05.09 @ 21:52:32 Sessions 1 Manual Loads 0 Difficulty Explorer Special Mode None Game No. 15 Rogue 0 Adventurer 0 Explorer 15 Win Type - Total 0 Types 0/0/0/0/0/0/0/0/0 Lore% 1 Gallery% 17 Achievement% 10 Wizard Run 0 Options --------- ASCII 0 Keyboard 0 Movement Mouse Keybinds 0 Fullscreen 1 Font 18/SmallcapsGlow Map View 76x50 Tactical HUD 1 Map Filters NONE Filters NONE Steam 1 RUN: 1667fd83-e28f-4a0f-bb53-50040d5cf918